Cogmind - Beta 15 @@@ ROGUE MODE // 2025.06.11 @ 14:56:11 Player: LightKnight Result: Smashed by cave-in Performance ------------- Evolutions (0) 0 Regions Visited (1) 200 Robots Destroyed (21) 105 Value Destroyed (413) 413 Prototype IDs (0) 0 Alien Tech Used (0) 0 Bonus (0) 0 TOTAL SCORE: 718 Bonus ------- None Cogmind --------- Core Integrity 0/250 Matter 138/300 Energy 100/100 System Corruption 4% Temperature Cool (0) Movement Treading (160) Location -10/Materials Parts ------- > --- POWER (1) -------- (None) > --- PROPULSION (2) --- Light Treads Light Treads > --- UTILITY (2) ------ Small Storage Unit > --- WEAPON (2) ------- Improved Light Cannon Improved Light Cannon > --- INVENTORY (8) ---- Light Ion Engine Improved Ion Engine Aluminum Leg Wheel Compact Wheel Structural Scanner Improved Light Cannon Grenade Launcher Peak State ------------ > --- POWER ------------ Improved Ion Engine > --- PROPULSION ------- Light Treads Light Treads > --- UTILITY ---------- Small Storage Unit Targeting Computer > --- WEAPON ----------- Improved Light Cannon Improved Light Cannon > --- INVENTORY -------- Light Ion Engine Improved Ion Engine Aluminum Leg Wheel Compact Wheel Structural Scanner Assault Rifle Improved Light Cannon [Rating: 11] Favorites ----------- Power Improved Ion Engine Engine Improved Ion Engine Propulsion Light Treads Treads Light Treads Leg Aluminum Leg Utility Small Storage Unit Device Structural Scanner Storage Small Storage Unit Processor Targeting Computer Weapon Improved Light Cannon Energy Gun Small Laser Ballistic Gun Assault Rifle Ballistic Cannon Improved Light Cannon Build | -11 -10 ------- Run | Yrd Mat Slots Evolved . | . . Power . | . . Propulsion . | . . Utility . | . . Weapon . | . . Parts Attached 8 | . 8 Power 1 | . 1 Engine 1 | . 1 Core . | . . Reactor . | . . Propulsion 2 | . 2 Treads 2 | . 2 Leg . | . . Wheel . | . . Hover . | . . Flight . | . . Utility 2 | . 2 Device 1 | . 1 Storage . | . . Processor 1 | . 1 Hackware . | . . Protection . | . . Artifact . | . . Weapon 3 | . 3 Energy Gun . | . . Energy Cannon . | . . Ballistic Gun 1 | . 1 Ballistic Cannon 2 | . 2 Launcher . | . . Special Weapon . | . . Impact Weapon . | . . Slashing Weapon . | . . Piercing Weapon . | . . Special Melee Weapon . | . . Unidentified Prototypes . | . . Parts Lost 1 | . 1 Power 1 | . 1 Propulsion . | . . Utility . | . . Weapon . | . . Highest Loss Streak 1 | . 1 To Critical Strikes . | . . Average Backups 7 | . 7 Power 1 | . 1 Propulsion 3 | . 3 Utility . | . . Weapon 1 | . 1 Tool/Special . | . . Unused Backups 13 | . 13 Power 3 | . 3 Propulsion 4 | . 4 Utility 1 | . 1 Weapon 5 | . 5 Tool/Special . | . . Average Slot Usage (%) 95 | . 95 Engine 14 | . 14 Treads 22 | . 22 Leg 5 | . 5 Device 6 | . 6 Storage 14 | . 14 Processor 3 | . 3 Ballistic Gun 6 | . 6 Ballistic Cannon 21 | . 21 Peak Build Rating 11 | . 11 Average Rating 9 | . 9 On Entrance 6 | 6 6 Naked Turns . | . . Heaviest Build 21 | 13 21 Greatest Support 40 | 20 40 Greatest Overweight (x) . | . . Average Overweight (x) . | . . Largest Inventory Capacity 8 | . 8 Average Capacity 8 | . 8 Most Carried 8 | . 8 Average Carried 7 | . 7 Final Capacity 8 | 8 8 Final Carried 8 | 6 8 Class Distribution -------------------- 100% | Mutant Dominant Class ---------------- Mutant | -10/Materials Resources | -11 -10 ----------- Run | Yrd Mat Matter Collected 617 | 195 422 Remotely . | . . Salvage Created 496 | . 496 Parts 46 | . 46 Haulers Intercepted . | . . Recyclers Shooed 1 | . 1 Parts Field Recycled . | . . Retrieved Matter . | . . Parts Self-Destructed . | . . Prevented . | . . Kills | -11 -10 ------- Run | Yrd Mat Combat Hostiles Destroyed 16 | . 16 Guns 14 | . 14 Cannons 2 | . 2 Classes Destroyed 6 | . 6 Worker 1 | . 1 Builder 1 | . 1 Watcher 3 | . 3 Swarmer 9 | . 9 Grunt 4 | . 4 Subdweller 3 | . 3 Best Kill Streak 5 | . 5 Combat Bots Only 4 | . 4 Max Kills in Single Turn 2 | . 2 Gunslinging 1 | . 1 Exploded . | . . Melee . | . . Uniques/NPCs Destroyed . | . . Combat | -11 -10 -------- Run | Yrd Mat Hostile Shots Fired 77 | . 77 Missed 22 | . 22 Hits 55 | . 55 Projectile 55 | . 55 Damage Taken 851 | . 851 Core 330 | . 330 Absorbed by Shields . | . . Core Remaining (%) 100 | 100 . Volleys Fired 108 | . 108 Largest 2 | . 2 Hottest 66 | . 66 Shots Fired 168 | . 168 Gun 98 | . 98 Cannon 70 | . 70 Launcher . | . . Special . | . . Kinetic 148 | . 148 Thermal 20 | . 20 Explosive . | . . Electromagnetic . | . . Robot Hit Streak 8 | . 8 Robot Miss Streak 4 | . 4 Penetration Max . | . . Secondary Targets 4 | . 4 Max Gunslinging Chain 1 | . 1 Shots Hit Robots 60 | . 60 Core Hits 28 | . 28 Critical Kills . | . . Critical Parts Destroyed . | . . Critical Strikes . | . . Melee Attacks . | . . Impact . | . . Slashing . | . . Piercing . | . . Sneak Attacks . | . . Combat Hostiles . | . . Follow-up Attacks . | . . Damage Inflicted 834 | . 834 Guns 726 | . 726 Cannons 88 | . 88 Explosions . | . . Melee . | . . Ramming 20 | . 20 Kinetic 679 | . 679 Thermal 135 | . 135 Explosive . | . . Electromagnetic . | . . Impact . | . . Slashing . | . . Piercing . | . . Highest Corruption . | . . Average Corruption . | . . Corruption Purged . | . . Corruption Blocked . | . . Overload Shots . | . . Overflow Damage . | . . Projectiles . | . . Explosions . | . . Melee . | . . Knockbacks . | . . Impact . | . . Kinetic . | . . Secondary . | . . Self-Inflicted Damage . | . . Shots . | . . Rammed 2 | . 2 Targets Rammed 5 | . 5 Kicked 3 | . 3 Crushed . | . . Highest Temperature 93 | . 93 Average Temperature 40 | . 40 Received Heat Transfer 141 | . 141 Siege Activations . | . . Martial Activations . | . . Shielding Activations . | . . Robots Disrupted . | . . Combat Hostiles . | . . Robots Corrupted . | . . Combat Hostiles . | . . Parts Fried . | . . Impact Corruptions . | . . Robots Melted . | . . Combat Hostiles . | . . Parts Melted . | . . Heat Transferred 300 | . 300 Parts Sabotaged . | . . Parts Stolen . | . . Parts Stripped . | . . Power Chain Reactions . | . . Alert | -11 -10 ------- Run | Yrd Mat Maximum Alert Level . | . . Low Security (%) 100 | . 100 Level 1 . | . . Level 2 . | . . Level 3 . | . . Level 4 . | . . Level 5 . | . . High Security . | . . Max Security . | . . Peak Influence 109 | . 109 Initial . | . . Average 15 | . 15 Influence Increases 366 | . 366 Destroy 0b10 Robot/C 260 | . 260 Destroy 0b10 Robot/NC 25 | . 25 Destroy Leader 56 | . 56 Successful Hack 16 | . 16 Destroy Structure 9 | . 9 Influence Decreases 366 | . 366 Time Decay 366 | . 366 Squads Dispatched 1 | . 1 Investigation . | . . Extermination . | . . Reinforcement 1 | . 1 Assault . | . . Garrison . | . . Intercept . | . . Searches Triggered . | . . Construction Impeded . | . . Haulers Reinforced . | . . Active Scanning Responses . | . . Cargo Convoy Interrupts . | . . Stealth | -11 -10 --------- Run | Yrd Mat Distress Signals 2 | . 2 Communications Jammed . | . . Distress Signals . | . . Times Spotted 23 | . 23 Peak Tracking Total 4 | . 4 Tactical Retreats 2 | . 2 Traps | -11 -10 ------- Run | Yrd Mat Traps Triggered 1 | . 1 Indirectly . | . . Trap Hack Attempts . | . . Triggered . | . . Disarmed . | . . Reprogrammed . | . . Reused . | . . Traps Extracted . | . . Installed . | . . Triggered . | . . Machines | -11 -10 ---------- Run | Yrd Mat Machines Disabled . | . . Max in Single Turn . | . . Machines Repaired . | . . Machines Dismantled . | . . Machines Sabotaged . | . . Overloaded Fab Kills . | . . Hacking | -11 -10 --------- Run | Yrd Mat Machines Accessed 1 | . 1 Terminals 1 | . 1 Fabricators . | . . Repair Stations . | . . Recycling Units . | . . Scanalyzers . | . . Garrison Access . | . . Total Hacks 2 | . 2 Successful 1 | . 1 Failed 1 | . 1 Catastrophic . | . . Database Lockouts . | . . Manual . | . . Terminals 2 | . 2 Fabricators . | . . Repair Stations . | . . Recycling Units . | . . Scanalyzers . | . . Garrison Access . | . . Terminal Hacks 1 | . 1 Branch Access Points 1 | . 1 Fabricator Hacks . | . . Repair Station Hacks . | . . Recycling Unit Hacks . | . . Scanalyzer . | . . Garrison Access Hacks . | . . Unauthorized Hacks . | . . Terminals . | . . Fabricators . | . . Repair Stations . | . . Recycling Units . | . . Scanalyzers . | . . Garrison Access . | . . Data Cores Recovered . | . . Used . | . . Hacking Detections 1 | . 1 Full Trace Events . | . . Feedback Events . | . . Feedback Blocked . | . . Robot Schematics Acquired . | . . Robots Built . | . . Authchips . | . . Time . | . . Total Robot Build Rating . | . . Part Schematics Acquired . | . . Parts Built . | . . Authchips . | . . Time . | . . Total Part Build Rating . | . . Parts Repaired . | . . Time . | . . Parts Recycled . | . . Recycled Matter . | . . Retrieved Matter . | . . Retrieved Components . | . . Parts Scanalyzed . | . . Part Schematics Acquired . | . . Parts Damaged . | . . Bothacking | -11 -10 ------------ Run | Yrd Mat Used RIF Installer . | . . Robots Hacked . | . . Non-combat . | . . Combat . | . . Robot Hacks Applied . | . . Relay Couplers Released . | . . Fabnet Peak Effective % . | . . Robots Rewired . | . . Allies Hacked . | . . Hacks Repelled . | . . Allies | -11 -10 -------- Run | Yrd Mat Total Allies . | . . Largest Group . | . . Highest-Rated Group . | . . Highest-Rated Ally . | . . Total Orders . | . . Ally Attacks . | . . Total Damage . | . . Kills . | . . Allies Corrupted . | . . Allies Melted . | . . Intel | -11 -10 ------- Run | Yrd Mat Active Infowar (turns) 522 | . 522 Structural 522 | . 522 Robot Analysis Total . | . . Derelict Logs Recovered . | . . Drone Launches . | . . Drone Recoveries . | . . Exploration | -11 -10 ------------- Run | Yrd Mat Turns Passed 2765 | . 2765 Spaces Moved 698 | 1 697 Core . | . . Treads 381 | . 381 Legs 317 | 1 316 Wheels . | . . Hover . | . . Flight . | . . Fastest Speed 120 | 120 120 Average Speed 141 | 120 141 Slowest Speed 160 | 120 160 Overloaded Moves . | . . Propulsion Burnouts . | . . Robots Hopped . | . . Potential Cave-ins . | . . Cave-ins Triggered 1 | . 1 Exploration Rate (%) 50 | 2 98 Regions Visited 1 Branch Regions . Pre-discovered Areas . | . . Known Exits Taken . | . . Unknown Exits Taken 1 | 1 . Scrap Searched . | . . Spaces Dug 9 | . 9 Terrain Destroyed 13 | . 13 Melee . | . . Projectile 13 | . 13 AOE . | . . Terrain Rammed . | . . Walls Destroyed . | . . Machines Disabled . | . . Actions | -11 -10 --------- Run | Yrd Mat Total 2308 | . 2308 Wait 1475 | . 1475 Move 697 | . 697 Hop . | . . Pick Up 4 | . 4 Fast Attach 4 | . 4 Attach 3 | . 3 Detach 5 | . 5 Swap 1 | . 1 Drop 6 | . 6 Fire 108 | . 108 Melee . | . . Ram . | . . Kick 3 | . 3 Crush 2 | . 2 Escape Stasis . | . . Rewire . | . . Trap . | . . Miscellaneous . | . . Route ------- -11/Scrapyard -10/Materials (discovered 5 exits: [*Mat x3] / *Min / [*Sub]) History --------- Turn | Location | Event 1 | -11/Scrapyard | Discovered new exit (range 0) 1 | -11/Scrapyard | Entered Materials 126 | -10/Materials | Discovered new exit (range 14) 187 | -10/Materials | Discovered new exit (range 8) 304 | -10/Materials | Discovered new exit (range 14) 313 | -10/Materials | Build established: Mutant 498 | -10/Materials | Discovered new exit (range 15) 501 | -10/Materials | Derelicts attacked the area 808 | -10/Materials | Identified exit to Mines 841 | -10/Materials | Discovered new exit (range 9) 2767 | -10/Materials | Crushed by falling debris 2767 | -10/Materials | Smashed by cave-in Last Messages --------------- 01082_ Acquired 17 matter. 01085_ Acquired 32 matter. 01087_ Acquired 26 matter. 01089_ Acquired 2 matter. 01127_ Discarded Targeting Computer. 01137_ U-05 Engineer builds a Wall. 01426_ R-06 Scavenger collects Aluminum Leg. 01739_ U-05 Engineer forms the Earth. 01955_ Acquired 4 matter. 01980_ U-05 Engineer builds a Wall. 02103_ U-05 Engineer forms the Earth. 02463_ U-05 Engineer builds a Wall. 02464_ Slammed into U-05 Engineer. 02686_ U-05 Engineer builds a Wall. 02698_ Acquired 5 matter. 02713_ U-05 Engineer builds a Wall. 02767_ The unstable cave ceiling collapses. 02767_ Crushed by falling debris. 02767_ Imp. Ion Engine destroyed. 02767_ System corrupted by crushing effect (+4). Map ----- +----------------------------------------------------+ | | | | | | | | | | | | | | | | | | | ?????????????????????????????????????????????????? | | ?????????????????????????????????????????????????? | | ??##?????????????????????????????????????????????? | | ?? #?????????????????????????????????????????????? | | "" #?????????????????????????????????????????????? | | "" #?????????????????????????????????????????????? | | "" #?????????????????????????????????????????????? | | "" #?????????????????????????????????????????????? | | #############?????????????????????????????????? | | / ## # #?????????????????????????????????? | | ## ! # < #?????????????????????????????????? | | = ## # #?????????????????????????????????? | | ## """ + #?????????????????????????????????? | | ## """ # #?????????????????????????????????? | | ## """ # #????????####?????????????????????? | | ############ #???????#####?????????????????????? | | ##########@##?????????????????????? | | #############?????????????????????? | | "" """ """ # * ###??????????????????????? | | "" """ "T" # ##???????????????????????? | | "" """ " "= # ##???????????????????????? | | *%&# ! ##?????????#######???????? | | % ! # ##????????? #???????? | | %##### & = # ##?????? """ #???????? | | +###### % % [ # ||! ##?????#""""" #???????? | | ## & # |!! ##?????#""""" #???????? | | = ####### + | ##?????#""""" #???????? | | #?????# ###########?????# """ ######### | | ######?????# ###########?????# # "T" | | ??????????## |##??????????????# # | | ??????????# [ ######################+### ! | | ??????????# # | | ??????????# " ^ + | | ??????????# =! # """ | | ??????????# #### ########## =! # """ | | ?????????########### #?# # !! # """ | | ?????????# ! # #??" """ # # | | ?????????# "T" + #??? """ # ######### | | ###??????# """ # #??" """ + #???????? | | #??????# ! # #?# # !!! #???????? | | #??????########### #??? ] # !!! ######### | +----------------------------------------------------+ Best States ------------- Heat Dissipation 25 Energy Generation 12 Energy Capacity 265 Matter Stores 300 Matter Capacity 300 Sight Range 16 Terrain Scan Density 10 Evasion (%) 55 Targeting Accuracy 5 Recoil Reduction 2 Item Schematics ----------------- None Robot Schematics ------------------ None Fabricated ------------ Nothing Repaired ---------- Nothing Alien Tech Used ----------------- None Achievements -------------- None Challenges ------------ None Game ------ Seed SmallScanExpander Manual? 0 Play Time 00:11:37 Cumulative 314.4 hours Start 2025.06.11 @ 14:47:46 End 2025.06.11 @ 14:56:11 Sessions 1 Manual Loads 0 Difficulty Rogue Special Mode None Game No. 225 Rogue 225 Adventurer 0 Explorer 0 Win Type - Total 24 Types 18/0/4/2/0/0/0/0/0/0 Lore% 87 Gallery% 74 Achievement% 64 Wizard Run 0 Options --------- Layout 0 ASCII 1 Keyboard 1 Movement Arrows Keybinds 0 Fullscreen 2 Font 18/Terminus Map View 76x50 Zoom Use 0% Tactical HUD 1 Map Filters NONE Filters NONE Steam 1 RUN: d04180df-7fd8-4292-bdd7-45907a12be08